fUSD/lending_fUSD_20240629
["ID","MTS","AMOUNT","RATE_DAILY","PERIOD"]
[330622156,1719636640188,-1000.0,0.00013999,2]
[330622157,1719636640198,-60755.50666712,0.00013999,2]
[330622158,1719636640209,-1925.55168034,0.00013999,2]
[330622159,1719636640222,-2424.84669876,0.00013999,2]
[330622160,1719636640275,-1573.10312879,0.00013999,2]
[330622161,1719636640287,-509.999985,0.00013999,2]
[330622174,1719636640395,-848.067256,0.00013999,2]
[330622183,1719636642901,-687.27693115,0.00013999,2]
[330622184,1719636642913,-1078.88186558,0.00013999,2]
[330622185,1719636642924,-665.00563056,0.00013999,2]
[330622186,1719636642934,-1134.83532094,0.00013999,2]
[330622187,1719636642954,-557.45058583,0.00013999,2]
[330622188,1719636643129,-620.1651035,0.00013999,2]
[330622189,1719636646172,-6661.15595031,0.00013999,2]
[330622190,1719636646184,-955.97574275,0.00013999,2]
[330622191,1719636646245,-2699.80418807,0.00013999,2]
[330622192,1719636646256,-2884.69337497,0.00013999,2]
[330622194,1719636646320,-359.00939672,0.00013999,2]
[330622195,1719636646332,-30002.04690252,0.00013999,2]
[330622196,1719636646782,-4073.7647615,0.00013999,2]
[330622197,1719636646794,-500.0,0.00013999,2]
[330622198,1719636646806,-9859.68079015,0.00013999,2]
[330622199,1719636646818,-6144.28488,0.00013999,2]
[330622200,1719636646863,-3521.565532,0.00013999,2]
[330622201,1719636646874,-8236.343794,0.00013999,2]
[330622202,1719636646886,-16231.02761,0.00013999,2]
[330622204,1719636816726,9805.0,0.0001,14]
[330622205,1719636863709,300.25025617,0.0001,2]
[330622206,1719636877305,6666.92380263,0.0001,2]
[330622208,1719637004789,7097.790126,0.00011142,2]
[330622211,1719637199079,157.86672414,0.00011098,2]
[330622214,1719637269410,5596.00864109,0.00011098,2]
[330622215,1719637370959,422.53,0.00010604,2]
[330622218,1719637475796,266.04133406,0.00011098,2]
[330622269,1719637721958,199.19086548,0.00011098,2]
[330622270,1719637724794,19813.39655712,0.00011098,2]
[330622271,1719637741483,552.49402152,0.00011098,2]
[330622274,1719637759952,300.25025617,0.00011098,2]
[330622276,1719637764707,181.32314825,0.00011098,2]
[330622277,1719637767561,155.32991129,0.00011098,2]
[330622279,1719637798459,300.25025617,0.00011098,2]
[330622280,1719637825471,18208.78397418,0.00011098,2]
[330622284,1719637832007,-250.0,0.0001235,2]
[330622285,1719637832017,-300.0,0.00012502,2]
[330622286,1719637832027,-300.0,0.00012502,2]
[330622287,1719637832036,-23900.0,0.00012503,2]
[330622288,1719637832046,-2361.19,0.00012526,2]
[330622289,1719637832055,-800.0,0.00012532,2]
[330622290,1719637832064,-1852.42,0.00012539,2]
[330622291,1719637832074,-200.0,0.0001254,2]
[330622292,1719637832084,-250.0,0.00012547,2]
[330622293,1719637832093,-150.0,0.00012555,2]
[330622294,1719637832103,-240.5,0.00012695,2]
[330622295,1719637832112,-240.5,0.0001273,2]
[330622296,1719637832121,-224.99,0.0001273,2]
[330622297,1719637832131,-240.5,0.00012764,2]
[330622298,1719637832140,-240.5,0.00012799,2]
[330622299,1719637832150,-240.5,0.00012834,2]
[330622300,1719637832159,-422.53,0.00012868,2]
[330622301,1719637832168,-240.5,0.00012869,2]
[330622302,1719637832177,-240.5,0.00012904,2]
[330622303,1719637832190,-322.0,0.00012917,2]
[330622304,1719637832200,-240.5,0.00012939,2]
[330622305,1719637832209,-240.5,0.00012973,2]
[330622306,1719637832219,-155.06,0.00013004,2]
[330622307,1719637832232,-3272.04642334,0.00013004,2]
[330622308,1719637832244,-21662.14357666,0.00013004,2]
[330622309,1719637832254,-240.5,0.00013008,2]
[330622310,1719637832264,-150.0,0.00013011,2]
[330622311,1719637832278,-299.99,0.00013012,2]
[330622312,1719637832287,-499.99,0.00013012,2]
[330622313,1719637832296,-240.5,0.00013043,2]
[330622314,1719637832306,-2829.81,0.00013072,2]
[330622315,1719637832316,-240.5,0.00013078,2]
[330622316,1719637832326,-240.5,0.00013113,2]
[330622317,1719637832336,-240.5,0.00013147,2]
[330622318,1719637832345,-240.5,0.00013182,2]
[330622319,1719637832355,-240.5,0.00013217,2]
[330622320,1719637832364,-240.5,0.00013252,2]
[330622321,1719637832374,-240.5,0.00013287,2]
[330622322,1719637832384,-240.5,0.00013322,2]
[330622323,1719637832394,-240.5,0.00013356,2]
[330622324,1719637832404,-280.56124716,0.00013452,2]
[330622325,1719637832413,-300.3176468,0.00013452,2]
[330622326,1719637832423,-545.59859068,0.00013472,2]
[330622327,1719637832432,-155.4761818,0.00013543,2]
[330622328,1719637832442,-150.0,0.00013663,2]
[330622330,1719637832451,-214.52,0.00013699,2]
[330622332,1719637832462,-500.0,0.00013699,2]
[330622334,1719637832471,-200.0,0.00013699,2]
[330622336,1719637832481,-714.63,0.00013699,2]
[330622337,1719637832490,-420.0,0.00013717,2]
[330622338,1719637832500,-1516.59942044,0.00013789,2]
[330622340,1719637832509,-150.0,0.00013811,2]
[330622342,1719637832519,-1032.89423,0.0001386,2]
[330622344,1719637832528,-8298.06441326,0.00013889,2]
[330622346,1719637832538,-173.38,0.00013898,2]
[330622349,1719637832548,-4897.9805,0.00013899,2]
[330622351,1719637832558,-1000.0,0.00013899,2]
[330622352,1719637832567,-2500.0,0.00013899,2]
[330622354,1719637832576,-218.74996031,0.00013899,2]
[330622356,1719637832586,-330.08747481,0.00013899,2]
[330622391,1719637832894,-663.56579088,0.00013899,2]
[330622395,1719637832928,-155.69120155,0.000139,2]
[330622397,1719637832937,-172.59072584,0.000139,2]
[330622399,1719637832946,-1655.18272429,0.000139,2]
[330622401,1719637832956,-1911.1579102,0.000139,2]
[330622403,1719637832967,-614.49,0.00013979,3]
[330622405,1719637832976,-65110.1938822,0.00013989,2]
[330622407,1719637832985,-9213.7949038,0.00013989,2]
[330622409,1719637832993,-3847.929742,0.00013989,2]
[330622411,1719637833003,-10500.5398008,0.0001399,2]
[330622413,1719637833013,-303265.71077626,0.00013999,2]
[330622415,1719637833024,-106425.84,0.00013999,2]
[330622417,1719637833033,-2000.0,0.00013999,2]
[330622419,1719637833042,-200.0,0.00013999,2]
[330622421,1719637833052,-2000.0,0.00013999,2]
[330622423,1719637833062,-200.0,0.00013999,2]
[330622425,1719637833071,-2000.0,0.00013999,2]
[330622427,1719637833080,-200.0,0.00013999,2]
[330622429,1719637833089,-2000.0,0.00013999,2]
[330622431,1719637833098,-200.0,0.00013999,2]
[330622433,1719637833107,-1049.0,0.00014,2]
[330622435,1719637833116,-168203.07801721,0.00014,2]
[330622476,1719637833906,-3726.12728778,0.00014,2]
[330622477,1719637833919,-971.11180087,0.00014,2]
[330622478,1719637833930,-4646.09288881,0.00014,2]
[330622479,1719637833967,-4843.30926104,0.00014,2]
[330622480,1719637833978,-967.82884568,0.00014,2]
[330622481,1719637833988,-256855.81484271,0.00014,2]
[330622482,1719637834008,-388.75153222,0.00014,2]
[330622483,1719637838037,-407408.94537539,0.00014,2]
[330622484,1719637838047,-176031.54703492,0.00014,2]
[330622485,1719637838166,-369591.27459258,0.00014,2]
[330622486,1719637838178,-297040.47233599,0.00014,2]
[330622490,1719637840191,-7490.90642982,0.00014,2]
[330622514,1719637843165,-443.180001,0.00014,2]
[330622544,1719637846444,-1053.0,0.00014,2]
[330622545,1719637846453,-26126.58949181,0.00014,2]
[330622569,1719638037676,-150.0,0.00015,15]
[330622572,1719638205293,474.28975858,0.00011098,2]
[330622573,1719638237659,169.93519535,0.00011098,2]
[330622574,1719638254780,155.19550912,0.00011098,2]
[330622575,1719638281829,266.17183068,0.00011098,2]
[330622576,1719638288795,300.18286554,0.00011098,2]
[330622577,1719638502889,-250.0,0.0001169,2]
[330622578,1719638502910,-2252.8828,0.00011982,2]
[330622579,1719638502932,-429.15,0.00012082,2]
[330622580,1719638502952,-1641.75,0.00012124,2]
[330622581,1719638502973,-412.55586859,0.00012273,2]
[330622582,1719638502995,-23900.0,0.00012325,2]
[330622583,1719638503017,-250.0,0.00012348,2]
[330622584,1719638503047,-255.63,0.00012394,2]
[330622585,1719638503070,-150.0,0.00012399,2]
[330622586,1719638503094,-255.63,0.00012428,2]
[330622587,1719638503116,-110.20133141,0.00012428,2]
[330622588,1719638525428,-200.0,0.00012282,2]
[330622589,1719638569234,-761.3,0.00011834,2]
[330622590,1719638569257,-144.95,0.00012282,2]
[330622591,1719638569279,-300.0,0.00012427,2]
[330622592,1719638569301,-389.78866859,0.00012428,2]
[330622593,1719638569322,-150.99,0.00012428,2]
[330622594,1719638569346,-644.62,0.00012428,2]
[330622595,1719638569373,-707.28,0.00012428,2]
[330622596,1719638569394,-1197.15,0.00012428,2]
[330622597,1719638569415,-168.36,0.00012449,2]
[330622598,1719638569436,-255.63,0.00012462,2]
[330622599,1719638569457,-12590.42,0.00012463,2]
[330622600,1719638569477,-706.51,0.00012474,2]
[330622601,1719638569500,-255.63,0.00012496,2]
[330622602,1719638569522,-255.63,0.0001253,2]
[330622603,1719638569543,-150.0,0.0001256,2]
[330622604,1719638569564,-100227.74133141,0.00012561,2]
[330622605,1719638588266,-300.0,0.00012374,2]
[330622607,1719638633670,407.69,0.00010387,2]
[330622609,1719638725220,-150.0,0.00015,15]
[330622610,1719638727959,192.24421655,0.00010387,2]
[330622611,1719638728421,299.37230901,0.00010387,2]
[330622613,1719638774270,-300.0,0.00011246,2]
[330622614,1719638774292,-269700.0,0.00011247,2]
[330622678,1719638873743,155.0,0.00011098,2]
[330622760,1719638900822,184.7840485,0.00011098,2]
[330622761,1719638944472,600.0,0.00010112,2]
[330622762,1719638945031,700.0,0.00010112,2]
[330622763,1719638945993,600.0,0.00010934,2]
[330622764,1719638946934,700.0,0.00010934,2]
[330622768,1719639011384,900.0,0.00010112,2]
[330622769,1719639013267,900.0,0.00010934,2]
[330622775,1719639032626,-0.3884564,0.00011756,2]
[330622776,1719639032637,-599.6115436,0.00011756,2]
[330622777,1719639032647,-311.75676376,0.00011756,2]
[330622778,1719639032659,-388.24323624,0.00011756,2]
[330622779,1719639032672,-900.0,0.00011756,2]
[330622780,1719639032681,-160.27755322,0.00012173,2]
[330622781,1719639032692,-255.02986626,0.00012274,2]
[330622783,1719639032702,-2181.13,0.00012289,2]
[330622785,1719639032712,-160.27755311,0.00012308,2]
[330622787,1719639032722,-155.0,0.00012314,2]
[330622789,1719639032731,-200.0,0.0001232,2]
[330622791,1719639032741,-1077.27,0.0001233,2]
[330622793,1719639032751,-200.0,0.00012374,2]
[330622795,1719639032760,-160.27755311,0.00012443,2]
[330622797,1719639032770,-3320.82382122,0.00012561,2]
[330622799,1719639032781,-789.29286824,0.00012561,2]
[330622802,1719639032792,-27635.9657949,0.00012561,2]
[330622804,1719639032804,-339.85299,0.00012561,2]
[330622808,1719639032837,-3603.53690901,0.00012561,2]
[330622811,1719639032848,-3111.52761663,0.00012561,2]
[330622813,1719639032858,-160.27755311,0.00012577,2]
[330622815,1719639032867,-600.0,0.00012578,2]
[330622817,1719639032877,-700.0,0.00012578,2]
[330622819,1719639032887,-191.72,0.00012638,2]
[330622821,1719639032896,-407.69,0.00012651,2]
[330622823,1719639032905,-9999.99,0.00012651,2]
[330622825,1719639032914,-191.72,0.00012673,2]
[330622827,1719639032923,-191.72,0.00012707,2]
[330622829,1719639032932,-160.27755311,0.00012712,2]
[330622831,1719639032942,-191.72,0.00012742,2]
[330622833,1719639032951,-191.72,0.00012777,2]
[330622834,1719639032961,-177.78,0.00012806,2]
[330622837,1719639032970,-191.72,0.00012811,2]
[330622839,1719639032979,-191.72,0.00012846,2]
[330622841,1719639032989,-160.27755311,0.00012847,2]
[330622842,1719639032998,-150.99,0.0001287,2]
[330622845,1719639033007,-191.72,0.0001288,2]
[330622846,1719639033017,-191.72,0.00012915,2]
[330622848,1719639033028,-257.36028174,0.00012935,2]
[330622850,1719639033039,-191.72,0.0001295,2]
[330622852,1719639033048,-160.27755311,0.00012982,2]
[330622854,1719639033057,-191.72,0.00012984,2]
[330622856,1719639033066,-191.72,0.00013019,2]
[330622858,1719639033075,-191.72,0.00013054,2]
[330622860,1719639033084,-191.72,0.00013088,2]
[330622862,1719639033093,-160.27755311,0.00013116,2]
[330622864,1719639033102,-191.72,0.00013123,2]
[330622866,1719639033112,-1300.0,0.00013126,2]
[330622868,1719639033120,-1000.0,0.00013126,2]
[330622870,1719639033129,-854.55128571,0.00013128,2]
[330622872,1719639033138,-191.72,0.00013158,2]
[330622874,1719639033147,-191.72,0.00013192,2]
[330622876,1719639033156,-191.72,0.00013227,2]
[330622878,1719639033165,-160.27755311,0.00013251,2]
[330622879,1719639033174,-3887.9813453,0.00013253,2]
[330622882,1719639033185,-692.64845483,0.00013253,2]
[330622884,1719639033197,-3142.88092348,0.00013253,2]
[330622887,1719639033213,-1536.45624291,0.00013253,2]
[330622889,1719639033224,-10356.04560888,0.00013253,2]
[330622891,1719639033233,-220.20068381,0.00013253,2]
[330622893,1719639033244,-191.72,0.00013262,2]
[330622895,1719639033252,-191.72,0.00013296,2]
[330622897,1719639033261,-1000.0,0.00013346,2]
[330622899,1719639033270,-5517.148,0.00013352,2]
[330622901,1719639033281,-160.27755311,0.00013386,2]
[330622903,1719639033290,-600.0,0.000134,2]
[330622905,1719639033299,-900.0,0.000134,2]
[330622907,1719639033308,-1105.60527474,0.00013451,3]
[330622909,1719639033317,-1105.60527475,0.00013451,3]
[330622910,1719639033326,-879.22993453,0.00013483,2]
[330622912,1719639033335,-160.27755311,0.00013521,2]
[330622915,1719639033344,-173.38,0.00013614,2]
[330622916,1719639033353,-160.27755311,0.00013655,2]
[330622919,1719639033363,-567.17,0.00013699,2]
[330622920,1719639033371,-534.09,0.00013699,2]
[330622922,1719639033381,-879.22993454,0.00013789,2]
[330622923,1719639033390,-160.27755311,0.0001379,2]
[330622924,1719639033400,-154.68170655,0.000138,2]
[330622925,1719639033409,-7468.25797197,0.000138,2]
[330622926,1719639033418,-6668.4304,0.000138,2]
[330622927,1719639033427,-505.45821137,0.00013849,2]
[330622928,1719639033437,-250.80647,0.0001386,2]
[330622929,1719639033447,-500.0,0.00013887,2]
[330622930,1719639033456,-200.0,0.00013887,2]
[330622931,1719639033465,-500.0,0.00013888,2]
[330622932,1719639033474,-500.0,0.00013888,2]
[330622933,1719639033484,-200.0,0.00013888,2]
[330622934,1719639033493,-200.0,0.00013888,2]
[330622935,1719639033502,-6436.50001064,0.00013889,2]
[330622936,1719639033518,-1502.92032109,0.00013889,2]
[330622937,1719639033529,-3069.0,0.00013889,2]
[330622938,1719639033540,-24613.42646827,0.00013889,2]
[330622939,1719639033550,-276.91190749,0.0001389,2]
[330622940,1719639033559,-333.2649087,0.0001389,2]
[330622941,1719639033568,-769.14242717,0.0001389,2]
[330622942,1719639033577,-220.24,0.0001389,3]
[330622943,1719639033586,-218777.2369711,0.000139,2]
[330622944,1719639033596,-171.92057709,0.000139,2]
[330622945,1719639033605,-1000.0,0.000139,2]
[330622946,1719639033614,-1901.92234069,0.000139,2]
[330622947,1719639033623,-430.98078548,0.00013932,2]
[330622948,1719639033634,-1300.0,0.00013948,2]
[330622949,1719639033643,-1000.0,0.00013948,2]
[330622950,1719639033653,-218.408832,0.00013973,2]
[330622951,1719639033662,-952.0,0.00013989,2]
[330622952,1719639033671,-116286.75509234,0.00013989,2]
[330622953,1719639033683,-311.44111006,0.00013989,2]
[330622954,1719639033695,-259.37769393,0.00013989,2]
[330622955,1719639034626,246.34734534,0.00011098,2]
[330622959,1719639038249,-1907.33688273,0.00013472,2]
[330622960,1719639038260,-769.14242716,0.00013895,2]
[330622961,1719639038270,-29101.88723785,0.00013989,2]
[330622962,1719639038284,-6842.5,0.00013989,2]
[330622963,1719639038295,-11216.25702667,0.00013989,2]
[330622964,1719639038317,-451.57864314,0.00013989,2]
[330622965,1719639038328,-939.46473459,0.00013989,2]
[330622966,1719639038343,-774.26039085,0.00013989,2]
[330622967,1719639038354,-528.39896365,0.00013989,2]
[330622968,1719639038366,-1340.26476761,0.00013989,2]
[330622969,1719639038377,-1258.28539142,0.00013989,2]
[330622970,1719639038389,-7583.69736179,0.00013989,2]
[330622971,1719639038407,-371027.38687943,0.00013989,2]
[330622972,1719639038417,-276.91190749,0.0001399,2]
[330622973,1719639038427,-1318.8502609,0.00013999,2]
[330622974,1719639038437,-210817.34336249,0.00014,2]
[330622975,1719639038449,-3781.99999999,0.00014,2]
[330622976,1719639038471,-619.34200003,0.00014,2]
[330622977,1719639038483,-760.703511,0.00014,2]
[330622978,1719639038495,-4474.43573524,0.00014,2]
[330622979,1719639038507,-2658.89648734,0.00014,2]
[330622980,1719639038518,-4209.38284784,0.00014,2]
[330622981,1719639038530,-1000.12448016,0.00014,2]
[330622982,1719639038542,-484.04490237,0.00014,2]
[330622983,1719639038568,-359094.88340597,0.00014,2]
[330622984,1719639038578,-151.0,0.00014,2]
[330622985,1719639038588,-291.909552,0.00014,2]
[330622986,1719639038598,-151.0,0.00014,2]
[330622987,1719639038608,-151.0,0.00014,2]
[330622988,1719639038618,-152.023548,0.00014,2]
[330622989,1719639038628,-151.0,0.00014,2]
[330622990,1719639038638,-154.605717,0.00014,2]
[330622991,1719639038648,-151.0,0.00014,2]
[330622992,1719639038658,-151.51029,0.00014,2]
[330622993,1719639038668,-200.790115,0.00014,2]
[330622994,1719639038678,-151.0,0.00014,2]
[330622995,1719639038688,-151.0,0.00014,2]
[330622996,1719639038698,-151.0,0.00014,2]
[330622997,1719639038707,-151.0,0.00014,2]
[330622998,1719639038717,-153.959053,0.00014,2]
[330622999,1719639038727,-151.0,0.00014,2]
[330623000,1719639038737,-151.0,0.00014,2]
[330623001,1719639038747,-151.0,0.00014,2]
[330623002,1719639038756,-266.099553,0.00014,2]
[330623003,1719639038766,-151.0,0.00014,2]
[330623004,1719639038776,-151.0,0.00014,2]
[330623005,1719639038786,-151.0,0.00014,2]
[330623006,1719639038796,-151.0,0.00014,2]
[330623007,1719639038807,-151.0,0.00014,2]
[330623008,1719639038816,-151.0,0.00014,2]
[330623009,1719639038825,-151.0,0.00014,2]
[330623010,1719639038835,-151.0,0.00014,2]
[330623011,1719639038846,-151.0,0.00014,2]
[330623012,1719639038856,-151.0,0.00014,2]
[330623013,1719639038866,-151.40052,0.00014,2]
[330623014,1719639038876,-151.544884,0.00014,2]
[330623015,1719639038886,-151.755047,0.00014,2]
[330623016,1719639038897,-152.054926,0.00014,2]
[330623017,1719639038907,-151.0,0.00014,2]
[330623018,1719639038917,-264.624818,0.00014,2]
[330623019,1719639038927,-151.0,0.00014,2]
[330623020,1719639038937,-250.956894,0.00014,2]
[330623021,1719639038948,-250.956894,0.00014,2]
[330623022,1719639038958,-151.0,0.00014,2]
[330623023,1719639038969,-151.0,0.00014,2]
[330623024,1719639038979,-151.0,0.00014,2]
[330623025,1719639038990,-151.0,0.00014,2]
[330623026,1719639039000,-151.0,0.00014,2]
[330623027,1719639039010,-151.0,0.00014,2]
[330623028,1719639039020,-151.0,0.00014,2]
[330623029,1719639039032,-151.0,0.00014,2]
[330623030,1719639039043,-151.0,0.00014,2]
[330623031,1719639039053,-296.502163,0.00014,2]
[330623032,1719639039067,-151.0,0.00014,2]
[330623033,1719639039077,-343.354288,0.00014,2]
[330623034,1719639039087,-154.307817,0.00014,2]
[330623035,1719639039098,-343.354288,0.00014,2]
[330623036,1719639039108,-151.0,0.00014,2]
[330623037,1719639039119,-156.738154,0.00014,2]
[330623038,1719639039130,-151.0,0.00014,2]
[330623039,1719639039141,-151.741533,0.00014,2]
[330623040,1719639039151,-151.0,0.00014,2]
[330623041,1719639039162,-151.0,0.00014,2]
[330623042,1719639039173,-151.0,0.00014,2]
[330623043,1719639039184,-151.0,0.00014,2]
[330623044,1719639039194,-151.0,0.00014,2]
[330623045,1719639039209,-151.0,0.00014,2]
[330623046,1719639039220,-858.595442,0.00014,2]
[330623047,1719639039230,-151.0,0.00014,2]
[330623048,1719639039241,-858.595442,0.00014,2]
[330623049,1719639039252,-151.0,0.00014,2]
[330623050,1719639039262,-151.0,0.00014,2]
[330623051,1719639039273,-151.0,0.00014,2]
[330623052,1719639039284,-151.0,0.00014,2]
[330623053,1719639039294,-151.0,0.00014,2]
[330623054,1719639039304,-155.06,0.00014062,2]
[330623055,1719639039314,-155.34501545,0.00014099,2]
[330623056,1719639039325,-700.0,0.00014222,2]
[330623057,1719639039335,-250.80647,0.0001438,2]
[330623058,1719639039346,-567.17,0.00014384,2]
[330623059,1719639039356,-255.827,0.0001449,2]
[330623060,1719639039366,-255.827,0.0001449,2]
[330623061,1719639039376,-255.827,0.0001449,2]
[330623062,1719639039386,-255.827,0.0001449,2]
[330623063,1719639039396,-255.827,0.0001449,2]
[330623064,1719639039406,-255.827,0.0001449,2]
[330623065,1719639039416,-255.827,0.0001449,2]
[330623066,1719639039426,-255.827,0.0001449,2]
[330623067,1719639039436,-255.827,0.0001449,2]
[330623068,1719639039446,-255.827,0.0001449,2]
[330623069,1719639039456,-150.0,0.000146,2]
[330623070,1719639039466,-1901.92234067,0.00014717,2]
[330623071,1719639039476,-1300.0,0.0001477,2]
[330623072,1719639039487,-1000.0,0.0001477,2]
[330623073,1719639039496,-218.408832,0.00014795,2]
[330623074,1719639039506,-7468.2579719,0.000148,2]
[330623075,1719639039517,-429.52401097,0.0001485,2]
[330623076,1719639039527,-317.87,0.00014877,4]
[330623077,1719639039538,-407.69,0.00014914,2]
[330623078,1719639039548,-1340.46008288,0.00014966,2]
[330623079,1719639039558,-45394.8071478,0.00014989,2]
[330623080,1719639039568,-5964.684099,0.0001499,2]
[330623081,1719639039578,-2498.2138227,0.0001499,2]
[330623082,1719639039588,-1924.59212109,0.00015,2]
[330623083,1719639039598,-547642.56308235,0.00015,2]
[330623084,1719639039608,-2000.0,0.00015,2]
[330623085,1719639039618,-200.0,0.00015,2]
[330623086,1719639039628,-79267.0,0.00015,2]
[330623087,1719639040184,-24636.66392128,0.00015,2]
[330623088,1719639040212,-151.0,0.00015,2]
[330623089,1719639040223,-191.39542318,0.00015,2]
[330623090,1719639040233,-151.0,0.00015,2]
[330623092,1719639040243,-151.0,0.00015,2]
[330623094,1719639040254,-151.0,0.00015,2]
[330623096,1719639040265,-2000.0,0.00015,2]
[330623098,1719639040275,-200.0,0.00015,2]
[330623100,1719639040286,-151.0,0.00015,2]
[330623101,1719639040296,-151.0,0.00015,2]
[330623102,1719639040306,-151.0,0.00015,2]
[330623103,1719639040316,-151.0,0.00015,2]
[330623104,1719639040326,-151.0,0.00015,2]
[330623105,1719639040337,-151.0,0.00015,2]
[330623106,1719639040347,-151.0,0.00015,2]
[330623107,1719639040356,-151.0,0.00015,2]
[330623108,1719639040366,-151.0,0.00015,2]
[330623109,1719639040376,-151.0,0.00015,2]
[330623110,1719639040386,-151.0,0.00015,2]
[330623111,1719639040396,-151.0,0.00015,2]
[330623112,1719639040406,-151.0,0.00015,2]
[330623113,1719639040416,-151.0,0.00015,2]
[330623114,1719639040426,-151.0,0.00015,2]
[330623115,1719639040436,-152.440459,0.00015,2]
[330623116,1719639040447,-250.956894,0.00015,2]
[330623117,1719639040456,-250.956894,0.00015,2]
[330623118,1719639040466,-151.0,0.00015,2]
[330623119,1719639040476,-151.0,0.00015,2]
[330623120,1719639040487,-151.0,0.00015,2]
[330623121,1719639040497,-2000.0,0.00015,2]
[330623122,1719639040507,-209.561597,0.00015,2]
[330623123,1719639040516,-151.0,0.00015,2]
[330623124,1719639040526,-200.0,0.00015,2]
[330623125,1719639040535,-151.0,0.00015,2]
[330623126,1719639040545,-151.0,0.00015,2]
[330623127,1719639040555,-73.76331776,0.00015,2]
[330623130,1719639041932,-852.0,0.00014,2]
[330623131,1719639041942,-77.23668224,0.00015,2]
[330623132,1719639041952,-151.0,0.00015,2]
[330623133,1719639041962,-343.354288,0.00015,2]
[330623134,1719639041971,-343.354288,0.00015,2]
[330623135,1719639041981,-151.0,0.00015,2]
[330623136,1719639041992,-151.0,0.00015,2]
[330623137,1719639042001,-151.0,0.00015,2]
[330623138,1719639042011,-151.0,0.00015,2]
[330623139,1719639042021,-151.0,0.00015,2]
[330623140,1719639042031,-151.0,0.00015,2]
[330623141,1719639042042,-151.0,0.00015,2]
[330623142,1719639042051,-858.595442,0.00015,2]
[330623143,1719639042061,-151.0,0.00015,2]
[330623144,1719639042070,-858.595442,0.00015,2]
[330623145,1719639042081,-250.80648,0.00015,2]
[330623146,1719639042090,-164.893614,0.00015,2]
[330623147,1719639042100,-151.0,0.00015,2]
[330623148,1719639042109,-151.0,0.00015,2]
[330623149,1719639042119,-151.0,0.00015,2]
[330623150,1719639042128,-247.713216,0.00015,2]
[330623151,1719639042137,-247.713216,0.00015,2]
[330623152,1719639042147,-151.0,0.00015,2]
[330623153,1719639042156,-227.532762,0.00015,2]
[330623154,1719639042165,-151.0,0.00015,2]
[330623155,1719639042175,-151.0,0.00015,2]
[330623156,1719639042184,-227.532762,0.00015,2]
[330623157,1719639042194,-152.23958,0.00015,2]
[330623158,1719639042208,-154.403912,0.00015,2]
[330623159,1719639042219,-306.780135,0.00015,2]
[330623160,1719639042228,-306.780135,0.00015,2]
[330623161,1719639042238,-151.0,0.00015,2]
[330623162,1719639042248,-339.761237,0.00015,2]
[330623163,1719639042257,-339.761237,0.00015,2]
[330623164,1719639042266,-253.825932,0.00015,2]
[330623165,1719639042276,-151.0,0.00015,2]
[330623166,1719639042290,-151.0,0.00015,2]
[330623167,1719639042300,-253.825932,0.00015,2]
[330623168,1719639042309,-151.0,0.00015,2]